bitfinex/quotes_SOLUSD_20250830
["timestamp","ask_amount","ask_price","bid_price","bid_amount"]
[1756576614310,0.06,201.1,201.09,18.56849171]
[1756576614511,0.06,201.1,201.09,61.83483581]
[1756576614724,0.06,201.1,201.09,141.3348358]
[1756576615094,0.75,201.1,201.09,136.6284917]
[1756576621439,0.06,201.1,201.09,142.0048358]
[1756576624030,0.06,201.1,201.09,141.9448358]
[1756576624210,0.06,201.1,201.09,103.4448358]
[1756576624529,0.06,201.1,201.09,141.9448358]
[1756576626326,0.06,201.1,201.09,98.0684917]
[1756576626525,0.75,201.1,201.09,136.5484917]
[1756576626825,0.06,201.1,201.09,136.5484917]
[1756576627126,0.06,201.1,201.09,141.2348358]
[1756576628125,0.75,201.1,201.09,136.5484917]
[1756576628913,0.75,201.1,201.09,93.095594]
[1756576629104,0.75,201.1,201.09,131.575594]
[1756576629105,5.4363441,201.1,201.09,131.575594]
[1756576629300,0.75,201.1,201.09,131.575594]
[1756576632531,0.75,201.1,201.09,52.07559401]
[1756576634136,0.75,201.1,201.09,52.05559401]
[1756576636124,5.4363441,201.1,201.09,52.05559401]
[1756576637854,5.4363441,201.1,201.08,0.03]
[1756576638133,4.6863441,201.09,201.08,0.03]
[1756576638333,4.6863441,201.09,201.08,38.49]
[1756576638540,5.3763441,201.09,201.08,38.49]
[1756576648948,4.6863441,201.09,201.08,38.49]
[1756576652018,4.7463441,201.1,201.08,39.15]
[1756576652224,4.7463441,201.1,201.09,13.59559401]
[1756576653728,5.4263441,201.1,201.08,0.03]
[1756576653929,4.6863441,201.09,201.08,0.03]
[1756576654138,4.6863441,201.09,201.08,52.08559401]
[1756576656244,4.6863441,201.09,201.08,131.585594]
[1756576660043,4.6863441,201.09,201.08,132.245594]
[1756576660243,0.06,201.1,201.09,13.59559401]
[1756576660537,4.7463441,201.1,201.09,13.59559401]
[1756576663223,4.7463441,201.1,201.09,14.25559401]
[1756576664538,0.06,201.1,201.09,103.4148358]
[1756576669533,0.06,201.1,201.09,105.4081088]
[1756576670247,0.06,201.1,201.09,103.4148358]
[1756576677349,0.06,201.1,201.09,105.4081088]
[1756576677857,0.06,201.1,201.09,103.4148358]
[1756576678157,0.06,201.1,201.09,141.8548358]
[1756576679061,0.06,201.1,201.09,143.8481088]
[1756576682761,0.06,201.11,201.09,143.8481088]
[1756576683057,0.06,201.11,201.1,19.00193811]
[1756576683476,0.06,201.11,201.1,19.30300912]
[1756576684035,0.77,201.11,201.1,15.58856901]
[1756576684250,0.06,201.11,201.1,55.03003412]
[1756576684442,0.06,201.11,201.1,55.75003412]
[1756576684652,0.06,201.13,201.11,13.59559401]
[1756576684960,0.06,201.13,201.12,60.00219004]
[1756576685166,0.06,201.13,201.12,60.72219004]
[1756576685336,0.06,201.14,201.13,13.59559401]
[1756576685669,0.06,201.15,201.13,13.59559401]
[1756576685670,0.06,201.15,201.14,93.035594]
[1756576685835,0.06,201.15,201.14,132.195594]
[1756576686035,0.06,201.15,201.14,135.19003411]
[1756576686235,0.06,201.15,201.14,96.03003411]
[1756576686657,0.77,201.15,201.14,134.45003411]
[1756576686874,0.77,201.15,201.14,136.42725552]
[1756576687244,0.77,201.15,201.14,98.00725552]
[1756576687641,0.77,201.15,201.14,136.42725552]
[1756576689963,0.06,201.15,201.14,136.42725552]
[1756576690397,0.77,201.15,201.14,136.42725552]
[1756576691460,0.77,201.15,201.14,131.455594]
[1756576692541,0.06,201.15,201.14,136.42725552]
[1756576692746,0.06,201.15,201.14,141.8259187]
[1756576695066,0.06,201.15,201.14,146.5045817]
[1756576695361,0.06,201.15,201.14,141.82591852]
[1756576695570,0.06,201.15,201.14,146.5045817]
[1756576697056,0.06,201.15,201.14,102.68591852]
[1756576697248,0.77,201.15,201.14,136.42725552]
[1756576700960,0.06,201.15,201.14,141.8259187]
[1756576701163,0.06,201.15,201.14,141.1059187]
[1756576701956,0.06,201.15,201.14,141.8259187]
[1756576702167,0.06,201.15,201.14,141.1059187]
[1756576702869,0.06,201.15,201.14,136.42725552]
[1756576704269,0.77,201.15,201.14,136.42725552]
[1756576707754,0.06,201.15,201.14,136.42725552]
[1756576708480,0.77,201.15,201.14,136.42725552]
[1756576708680,0.06,201.15,201.14,136.42725552]
[1756576708874,0.77,201.15,201.14,136.42725552]
[1756576710077,0.06,201.15,201.14,136.42725552]
[1756576711858,0.77,201.15,201.14,93.035594]
[1756576712055,0.77,201.15,201.14,131.435594]
[1756576713889,0.77,201.15,201.14,93.035594]
[1756576714181,5.44866318,201.15,201.14,131.435594]
[1756576714393,0.77,201.15,201.14,131.435594]
[1756576714887,0.77,201.15,201.14,131.465594]
[1756576715561,5.44866318,201.15,201.14,131.465594]
[1756576716787,0.77,201.15,201.14,131.465594]
[1756576717081,0.06,201.15,201.14,131.465594]
[1756576717968,0.06,201.15,201.14,136.43725552]
[1756576718471,0.06,201.15,201.14,56.99725553]
[1756576719784,0.77,201.15,201.14,56.99725553]
[1756576720193,0.77,201.15,201.14,52.02559401]
[1756576721280,0.06,201.15,201.14,56.99725553]
[1756576721663,0.06,201.15,201.14,57.71725553]
[1756576721979,0.06,201.15,201.14,60.71229506]
[1756576722864,0.06,201.15,201.14,140.15229505]
[1756576723063,0.06,201.15,201.14,142.14487305]
[1756576723296,1e-08,201.15,201.14,142.14487305]
[1756576724267,1e-08,201.18,201.17,39.59559401]
[1756576724477,1e-08,201.18,201.17,81.48772555]
[1756576724775,1e-08,201.18,201.17,82.20772555]
[1756576724982,1e-08,201.18,201.17,84.19980655]
[1756576725402,1e-08,201.18,201.17,90.84967592]
[1756576726065,1e-08,201.2,201.18,13.59559401]
[1756576726262,0.2,201.32,201.2,13.59559401]
[1756576726513,0.71,201.3,201.28,4.67398879]
[1756576726666,0.71,201.3,201.29,51.99559401]
[1756576727291,0.71,201.3,201.29,56.96355068]
[1756576728187,0.71,201.3,201.29,51.99559401]
[1756576730097,5.38398879,201.3,201.28,79.43999999]
[1756576730270,4.96768132,201.31,201.29,38.38]
[1756576730472,26.0,201.29,201.24,13.59559401]
[1756576730702,4.67398879,201.28,201.26,13.59559401]
[1756576730892,4.67398879,201.28,201.27,38.38]
[1756576731392,4.67398879,201.28,201.24,13.59559401]
[1756576731591,5.38398879,201.27,201.26,13.59559401]
[1756576731794,0.71,201.27,201.26,51.97559401]
[1756576732509,5.38398879,201.27,201.26,51.97559401]
[1756576732816,4.67398879,201.28,201.26,51.97559401]
[1756576732984,5.38398879,201.28,201.26,51.97559401]
[1756576733185,0.71,201.27,201.26,51.97559401]
[1756576733381,0.77,201.27,201.26,51.97559401]
[1756576734202,0.77,201.27,201.26,13.59559401]
[1756576734503,5.44398879,201.27,201.26,51.97559401]
[1756576735306,0.77,201.27,201.26,51.97559401]
[1756576735805,0.06,201.27,201.26,51.97559401]
[1756576736993,0.77,201.27,201.26,51.97559401]
[1756576737306,0.06,201.27,201.26,51.97559401]
[1756576738026,5.44398879,201.27,201.26,51.97559401]
[1756576739813,5.44398879,201.27,201.26,13.59559401]
[1756576739992,0.77,201.27,201.26,51.97559401]
[1756576740195,0.06,201.27,201.26,52.69559401]
[1756576740505,0.06,201.27,201.26,51.97559401]
[1756576742002,0.06,201.27,201.26,56.94429121]
[1756576742212,0.06,201.27,201.26,57.65429121]
[1756576743713,0.06,201.27,201.26,56.94429121]
[1756576744298,0.06,201.27,201.26,57.65429121]
[1756576744509,0.06,201.27,201.26,62.32828]
[1756576744693,0.06,201.27,201.26,131.415594]
[1756576745301,5.40398879,201.27,201.26,13.59559401]
[1756576745502,5.40398879,201.27,201.24,14.937635]
[1756576745814,4.67398879,201.25,201.24,14.937635]
[1756576746014,4.67398879,201.25,201.24,38.38]
[1756576746314,26.0,201.26,201.24,51.97559401]
[1756576746512,4.67398879,201.25,201.24,51.97559401]
[1756576746693,5.34398879,201.25,201.24,51.97559401]
[1756576748398,4.67398879,201.25,201.24,51.97559401]
[1756576748605,4.67398879,201.26,201.24,51.97559401]
[1756576748792,4.73398879,201.27,201.25,13.59559401]
[1756576748997,5.40398879,201.27,201.26,51.95559401]
[1756576751223,4.73398879,201.27,201.26,51.95559401]
[1756576751400,5.40398879,201.27,201.26,51.95559401]
[1756576754506,4.73398879,201.27,201.26,51.95559401]
[1756576755626,5.40398879,201.27,201.26,51.95559401]
[1756576755997,31.40398879,201.27,201.26,51.95559401]
[1756576758404,30.73398879,201.27,201.26,51.95559401]
[1756576758805,4.73398879,201.27,201.26,52.66559401]
[1756576759613,5.40398879,201.27,201.26,13.59559401]
[1756576759928,4.73398879,201.27,201.26,51.95559401]
[1756576760407,5.40398879,201.27,201.26,51.95559401]
[1756576761007,4.73398879,201.27,201.26,51.95559401]
[1756576765908,5.40398879,201.27,201.26,38.36]
[1756576766934,10.37245461,201.27,201.26,38.36]
[1756576767816,5.40398879,201.27,201.26,38.36]
[1756576768021,4.73398879,201.27,201.26,38.36]
[1756576770515,5.40398879,201.27,201.26,38.36]
[1756576772333,5.40398879,201.27,201.22,14.30559401]
[1756576772523,0.73,201.27,201.24,13.59559401]
[1756576772723,0.73,201.27,201.25,38.36]
[1756576773742,4.67398879,201.26,201.25,38.36]
[1756576775220,5.37398879,201.26,201.25,38.36]
[1756576776442,5.37398879,201.26,201.21,84.40991597]
[1756576776443,26.0,201.23,201.21,79.43999999]
[1756576776626,4.67398879,201.22,201.21,14.29559401]
[1756576776944,4.67398879,201.22,201.21,52.65559401]
[1756576777945,14.943588,201.26,201.21,69.75441257]
[1756576778132,0.06,201.3,201.26,13.59559401]
[1756576778443,0.06,201.3,201.29,18.2695828]
[1756576778617,0.06,201.3,201.29,61.09396139]
[1756576778820,0.06,201.3,201.29,56.4199726]
[1756576779244,0.06,201.3,201.29,59.64446664]
[1756576780135,0.06,201.3,201.29,64.61242331]
[1756576780335,0.06,201.3,201.29,60.88804472]
[1756576780552,0.06,201.3,201.29,65.56203351]
[1756576783561,0.7,201.41,201.32,39.59559401]
[1756576783858,4.67398879,201.37,201.34,13.59559401]
[1756576784062,0.7,201.36,201.35,16.82008805]
[1756576784220,0.7,201.36,201.35,52.47559401]
[1756576785230,5.37398879,201.36,201.35,52.47559401]
[1756576785638,5.43398879,201.36,201.35,52.47559401]
[1756576786258,5.43398879,201.36,201.35,38.88]
[1756576786650,10.40028554,201.36,201.35,38.88]
[1756576787055,26.0,201.33,201.26,13.59559401]
[1756576787362,4.67398879,201.29,201.28,13.59559401]
[1756576787565,4.67398879,201.29,201.28,52.47559401]
[1756576789135,4.67398879,201.3,201.28,52.47559401]
[1756576789330,4.67398879,201.31,201.28,53.17559401]
[1756576790731,4.67398879,201.3,201.28,52.47559401]
[1756576790937,4.67398879,201.29,201.28,52.47559401]
[1756576791645,5.37398879,201.29,201.28,38.84]
[1756576792745,30.67398879,201.29,201.28,38.84]
[1756576793155,4.67398879,201.29,201.28,38.84]
[1756576794150,4.67398879,201.3,201.29,13.59559401]
[1756576794459,5.37398879,201.3,201.29,13.59559401]
[1756576796944,5.37398879,201.3,201.26,18.56427408]
[1756576797143,0.7,201.3,201.28,13.59559401]
[1756576797346,0.7,201.3,201.29,52.41559401]
[1756576798462,5.37398879,201.3,201.29,52.41559401]
[1756576800267,5.37398879,201.3,201.25,0.7]
[1756576800561,5.37398879,201.3,201.22,14.29559401]
[1756576800562,4.67398879,201.26,201.22,14.29559401]
[1756576800776,4.67398879,201.25,201.23,53.11559401]
[1756576800980,15.640611,201.34,201.24,18.9695828]
[1756576801149,5.37398879,201.33,201.28,13.59559401]
[1756576801348,4.67398879,201.33,201.3,13.59559401]
[1756576801659,26.0,201.35,201.32,13.59559401]
[1756576801842,30.67398879,201.35,201.33,38.84]
[1756576802180,4.67398879,201.34,201.33,52.43559401]
[1756576802555,4.73398879,201.36,201.34,13.59559401]
[1756576802873,4.73398879,201.36,201.35,52.45559401]
[1756576804162,5.43398879,201.36,201.35,52.45559401]
[1756576804549,5.43398879,201.36,201.35,38.86]
[1756576805556,10.40024379,201.36,201.35,38.86]
[1756576806249,26.0,201.33,201.28,0.03]
[1756576806568,4.67398879,201.29,201.28,0.03]
[1756576806746,4.67398879,201.29,201.28,38.91]
[1756576806946,31.37398879,201.29,201.28,38.91]
[1756576807567,36.34194546,201.29,201.28,38.91]
[1756576809767,31.37398879,201.29,201.28,38.91]
[1756576810350,36.34194546,201.29,201.28,38.91]
[1756576811061,36.34194546,201.29,201.28,0.03]
[1756576811257,36.34194546,201.29,201.28,38.87]
[1756576813275,10.34194546,201.29,201.28,0.03]
[1756576813501,26.0,201.28,201.2,0.03]
[1756576813656,26.0,201.28,201.22,5.56]
[1756576813990,26.7,201.27,201.22,5.56]
[1756576814152,0.7,201.26,201.22,5.56]
[1756576814356,0.7,201.25,201.22,5.56]
[1756576814554,26.0,201.23,201.22,5.56]
[1756576814776,30.67398879,201.23,201.22,5.56]
[1756576814985,30.67398879,201.23,201.2,13.62559401]
[1756576815170,4.67398879,201.21,201.2,13.62559401]
[1756576816571,30.67398879,201.21,201.2,0.03]
[1756576817766,4.67398879,201.21,201.2,14.31559401]
[1756576818987,10.88248444,201.35,201.2,19.28577293]
[1756576818988,30.67398879,201.23,201.2,19.28577293]
[1756576819166,30.67398879,201.23,201.22,13.59559401]
[1756576819480,4.67398879,201.31,201.22,14.7825625]
[1756576819778,4.67398879,201.26,201.24,13.59559401]
[1756576819978,0.7,201.32,201.24,18.2695828]
[1756576820279,4.67398879,201.33,201.28,13.59559401]
[1756576820456,5.37398879,201.33,201.3,13.59559401]
[1756576820653,0.06,201.36,201.32,4.67398879]
[1756576820873,0.06,201.36,201.3,18.2695828]
[1756576820874,0.06,201.36,201.35,23.23605908]
[1756576821485,0.06,201.36,201.35,18.56207029]
[1756576821681,0.06,201.36,201.35,23.23605908]
[1756576823862,0.06,201.36,201.35,18.56207029]
[1756576825266,0.06,201.36,201.35,23.23605908]
[1756576826696,0.06,201.36,201.35,18.56207029]
[1756576826985,0.06,201.36,201.35,62.57605908]
[1756576828685,0.06,201.36,201.35,13.59559401]
[1756576828686,0.76,201.36,201.35,13.59559401]
[1756576828864,0.76,201.36,201.35,52.91559401]
[1756576829065,0.06,201.36,201.35,57.88207029]
[1756576829989,0.06,201.36,201.35,52.91559401]
[1756576832268,0.06,201.36,201.35,57.88207029]
[1756576832895,0.06,201.36,201.35,62.55605908]
[1756576834696,0.06,201.36,201.35,142.05605908]
[1756576840296,1e-08,201.36,201.35,142.05605908]
[1756576840704,1e-08,201.36,201.35,144.04635608]
[1756576841485,1e-08,201.39,201.36,39.59559401]
[1756576841705,1e-08,201.39,201.38,18.2695828]
[1756576842213,1e-08,201.39,201.38,23.23531921]
[1756576844184,1e-08,201.39,201.38,18.56133042]
[1756576844392,1e-08,201.39,201.38,23.23531921]
[1756576845204,1e-08,201.39,201.38,62.39531921]
[1756576846001,1e-08,201.39,201.38,141.89531921]
[1756576846703,1e-08,201.39,201.38,98.06133042]
[1756576846891,1e-08,201.39,201.38,141.87531921]
[1756576849308,1e-08,201.39,201.38,102.73531921]
[1756576850002,1e-08,201.39,201.38,141.83531921]
[1756576852084,1e-08,201.39,201.38,102.73531921]
[1756576852297,1e-08,201.39,201.38,141.79531921]
[1756576852494,1e-08,201.39,201.38,102.73531921]
[1756576852698,1e-08,201.39,201.38,141.79531921]
[1756576855528,1e-08,201.39,201.38,102.73531921]
[1756576855697,1e-08,201.39,201.38,141.77531921]
[1756576856612,1e-08,201.39,201.38,102.73531921]
[1756576856808,1e-08,201.39,201.38,141.75531921]
[1756576857498,1e-08,201.39,201.38,141.78531921]
[1756576859208,0.71000001,201.42,201.38,110.50567146]
[1756576859412,0.71,201.41,201.4,13.59559401]
[1756576859601,0.71,201.41,201.4,52.63559401]
[1756576860307,0.71,201.41,201.4,57.3095828]
[1756576860620,5.38398879,201.41,201.38,4.99573641]
[1756576860818,0.71,201.4,201.39,39.04]
[1756576861042,5.38398879,201.4,201.38,0.03]
[1756576861198,5.38398879,201.4,201.39,52.65559401]
[1756576861515,0.71,201.4,201.39,52.65559401]
[1756576862726,0.71,201.4,201.39,57.62108385]
[1756576864122,0.71,201.4,201.39,52.65559401]
[1756576864305,5.38398879,201.4,201.39,13.59559401]
[1756576864511,5.38398879,201.4,201.39,52.63559401]
[1756576865908,5.38398879,201.4,201.38,0.03]
[1756576866108,4.67398879,201.39,201.35,0.03]
[1756576866313,4.67398879,201.36,201.32,13.59559401]
[1756576866617,0.72,201.35,201.33,39.04]
[1756576866800,26.0,201.37,201.34,39.04]
[1756576867200,26.0,201.37,201.27,7.5589398]
[1756576867401,0.72,201.36,201.28,52.65559401]
[1756576867710,4.67398879,201.3,201.28,52.65559401]
[1756576867913,0.72,201.29,201.28,57.6237975]
[1756576869924,5.39398879,201.29,201.24,13.59559401]
[1756576870118,4.96769054,201.31,201.24,13.59559401]
[1756576870119,4.67398879,201.26,201.25,39.06]
[1756576870425,4.67398879,201.27,201.26,13.59559401]
[1756576870732,4.67398879,201.32,201.26,57.3295828]
[1756576870930,0.72,201.31,201.28,13.59559401]
[1756576871101,0.72,201.31,201.3,13.59559401]
[1756576871426,15.926658,201.45,201.3,35.65656739]
[1756576871602,0.72,201.41,201.37,13.59559401]
[1756576871805,0.72,201.41,201.39,13.59559401]
[1756576872125,4.6739888,201.42,201.4,39.12]
[1756576872126,1e-08,201.42,201.4,39.12]
[1756576872328,1e-08,201.42,201.41,13.59559401]
[1756576872508,0.72000001,201.42,201.41,13.59559401]
[1756576873415,0.72000001,201.42,201.41,18.56059078]
[1756576873932,0.72000001,201.42,201.41,13.59559401]
[1756576874296,0.72000001,201.42,201.41,52.75559401]
[1756576874505,1e-08,201.42,201.41,52.75559401]
[1756576875229,0.72000001,201.42,201.41,52.75559401]
[1756576875434,1e-08,201.42,201.41,52.75559401]
[1756576875619,1e-08,201.42,201.41,57.72059078]
[1756576876833,0.72000001,201.42,201.41,57.72059078]
[1756576877726,1e-08,201.42,201.41,57.72059078]
[1756576877931,1e-08,201.42,201.41,62.39457957]
[1756576878601,1e-08,201.42,201.41,62.46457957]
[1756576879333,1e-08,201.42,201.41,62.39457957]
[1756576881925,1e-08,201.42,201.41,18.56059078]
[1756576882158,0.72000001,201.42,201.41,62.31457957]
[1756576882442,0.72000001,201.42,201.41,57.62059078]
[1756576885940,1e-08,201.42,201.41,57.62059078]
[1756576886130,1e-08,201.42,201.41,62.29457957]
[1756576886439,1e-08,201.42,201.41,23.23457957]
[1756576886609,1e-08,201.42,201.41,62.29457957]
[1756576887407,1e-08,201.42,201.41,57.62059078]
[1756576887610,1e-08,201.42,201.41,62.29457957]
[1756576889235,1e-08,201.42,201.41,62.36457957]
[1756576889610,1e-08,201.42,201.41,62.29457957]
[1756576895562,1e-08,201.42,201.41,23.23457957]
[1756576895837,1e-08,201.42,201.41,62.19457957]
[1756576898636,1e-08,201.42,201.41,62.26457957]
[1756576900837,1e-08,201.42,201.41,62.76107924]
[1756576901161,1e-08,201.42,201.41,19.05709045]
[1756576901444,1e-08,201.42,201.41,62.15457957]
[1756576903654,1e-08,201.42,201.41,141.65457957]
[1756576905565,1e-08,201.42,201.41,62.15457957]
[1756576906561,1e-08,201.45,201.44,39.59559401]
[1756576906859,1e-08,201.45,201.44,168.10429263]
[1756576907156,1e-08,201.45,201.44,167.6778669]
[1756576908541,1e-08,201.45,201.44,172.64212424]
[1756576909434,1e-08,201.45,201.44,177.31611324]
[1756576910274,0.71,201.5,201.45,13.59559401]
[1756576910469,0.71,201.5,201.49,9.63701425]
[1756576910770,0.71,201.5,201.49,62.17260826]
[1756576911071,3.98368455,201.64,201.53,13.59559401]
[1756576911072,19.87765546,201.64,201.53,13.59559401]
[1756576911239,4.67398879,201.59,201.55,13.59559401]
[1756576911438,4.67398879,201.59,201.56,38.94]
[1756576911655,0.71,201.58,201.56,38.94]
[1756576911969,0.71,201.57,201.56,52.53559401]
[1756576915767,0.77,201.57,201.56,52.53559401]
[1756576916347,0.77,201.57,201.56,57.49689585]
[1756576917565,0.77,201.57,201.56,52.53559401]
[1756576918473,0.77,201.57,201.56,57.49689585]
[1756576920585,0.77,201.57,201.56,52.53559401]
[1756576921459,0.77,201.57,201.56,57.49689585]
[1756576922663,0.06,201.57,201.56,62.17088464]
[1756576923557,0.75,201.57,201.56,62.17088464]
[1756576923762,0.75,201.57,201.56,57.49689585]
[1756576924275,0.06,201.57,201.56,62.17088464]
[1756576924851,0.75,201.57,201.56,62.17088464]
[1756576926657,0.06,201.57,201.56,62.17088464]
[1756576927880,0.75,201.57,201.56,62.17088464]
[1756576928185,0.06,201.57,201.56,62.17088464]
[1756576928476,0.06,201.57,201.56,18.55689585]
[1756576928689,0.06,201.57,201.56,62.03088464]
[1756576932095,4.67398879,201.65,201.57,13.59559401]
[1756576932288,0.69,201.63,201.62,13.59559401]
[1756576932464,0.69,201.63,201.62,52.39559401]
[1756576933282,0.69,201.67,201.64,13.59559401]
[1756576933486,0.69,201.66,201.65,52.41559401]
[1756576934363,0.69,201.66,201.65,57.37468153]
[1756576935361,0.69,201.66,201.65,52.41559401]
[1756576936265,0.69,201.66,201.65,62.04867032]
[1756576937192,0.69,201.68,201.66,13.59559401]
[1756576937384,4.67398879,201.7,201.68,13.59559401]
[1756576937580,4.67398879,201.7,201.69,52.39559401]
[1756576937995,5.36398879,201.7,201.69,13.59559401]
[1756576938292,5.36398879,201.7,201.69,52.37559401]
[1756576940194,0.69,201.7,201.69,52.37559401]
[1756576943283,0.69,201.72,201.7,13.59559401]
[1756576943478,26.0,201.73,201.71,38.72]
[1756576943979,0.69,201.72,201.71,38.72]
[1756576944182,0.69,201.72,201.71,52.31559401]
[1756576945666,0.69,201.72,201.71,13.59559401]
[1756576945989,5.36398879,201.72,201.71,38.7]
[1756576947196,5.36398879,201.72,201.71,38.72]
[1756576950298,10.32139359,201.72,201.66,18.55432654]
[1756576950498,10.32139359,201.72,201.6,18.55591147]
[1756576950499,4.67398879,201.67,201.6,18.55591147]
[1756576950677,4.67398879,201.62,201.6,18.55591147]
[1756576950876,4.67398879,201.62,201.61,52.33559401]
[1756576951083,4.67398879,201.63,201.61,52.33559401]
[1756576952581,4.67398879,201.63,201.62,38.72]
[1756576952785,4.67398879,201.64,201.63,13.59559401]
[1756576953181,26.72,201.67,201.63,13.59559401]
[1756576953378,0.72,201.69,201.62,13.59559401]
[1756576953578,4.67398879,201.67,201.64,13.59559401]
[1756576953791,4.67398879,201.68,201.64,18.62469892]
[1756576954002,4.67398879,201.68,201.65,38.81]
[1756576954500,4.67398879,201.68,201.65,38.74]
[1756576954879,4.67398879,201.67,201.65,38.74]
[1756576955601,5.39398879,201.68,201.65,38.74]
[1756576955902,4.67398879,201.68,201.65,43.69884703]
[1756576956593,0.72,201.7,201.65,43.69884703]
[1756576956903,4.67398879,201.68,201.65,43.69884703]
[1756576957305,0.72,201.69,201.65,43.69884703]
[1756576957512,4.67398879,201.68,201.65,43.69884703]
[1756576958007,5.39398879,201.68,201.65,43.69884703]
[1756576960217,4.67398879,201.68,201.65,43.69884703]
[1756576960638,0.72,201.73,201.66,18.3395828]
[1756576960801,4.67398879,201.71,201.68,13.59559401]
[1756576960985,4.67398879,201.72,201.7,13.59559401]
[1756576961183,4.67398879,201.72,201.71,52.27559401]
[1756576962709,4.67398879,201.72,201.71,57.23320642]
[1756576963388,5.39398879,201.73,201.71,57.23320642]
[1756576963592,5.39398879,201.73,201.72,13.59559401]
[1756576964309,5.39398879,201.73,201.72,52.25559401]
[1756576966404,5.39398879,201.73,201.72,52.23559401]
[1756576969003,0.72,201.73,201.72,52.23559401]
[1756576969225,5.39398879,201.73,201.72,52.23559401]
[1756576970524,5.39398879,201.73,201.72,52.19559401]
[1756576970729,5.45398879,201.73,201.72,52.19559401]
[1756576971104,5.45398879,201.73,201.72,13.59559401]
[1756576971411,5.45398879,201.73,201.72,52.19559401]
[1756576971617,4.73398879,201.73,201.72,57.15296065]
[1756576972209,5.45398879,201.73,201.72,57.15296065]
[1756576972608,4.73398879,201.73,201.72,57.15296065]
[1756576973716,0.06,201.73,201.72,57.22296065]
[1756576973915,0.06,201.73,201.72,57.15296065]
[1756576974314,5.45398879,201.73,201.72,13.59559401]
[1756576974518,5.45398879,201.73,201.72,52.19559401]
[1756576974722,5.45398879,201.73,201.72,52.21559401]
[1756576976723,0.78,201.73,201.72,52.21559401]
[1756576976923,5.45398879,201.73,201.72,13.59559401]
[1756576977128,5.45398879,201.73,201.72,52.21559401]
[1756576977634,5.45398879,201.73,201.72,13.59559401]
[1756576977834,5.45398879,201.73,201.72,52.21559401]
[1756576978213,5.45398879,201.73,201.72,52.19559401]
[1756576978414,5.45398879,201.73,201.72,13.59559401]
[1756576978615,5.45398879,201.73,201.72,52.19559401]
[1756576979334,0.78,201.73,201.72,13.59559401]
[1756576979536,5.45398879,201.73,201.72,52.19559401]
[1756576980540,10.41110969,201.73,201.72,38.58]
[1756576980718,5.45398879,201.73,201.72,38.58]
[1756576982838,5.45398879,201.73,201.68,13.59559401]
[1756576983055,4.67398879,201.69,201.68,13.59559401]
[1756576983220,4.67398879,201.69,201.68,52.17559401]
[1756576983741,4.67398879,201.69,201.68,52.15559401]
[1756576984835,5.32398879,201.69,201.68,52.15559401]
[1756576985521,0.06,201.73,201.69,13.59559401]
[1756576985710,0.06,201.73,201.71,13.59559401]
[1756576985913,4.73398879,201.73,201.72,52.15559401]
[1756576987131,5.38398879,201.73,201.72,52.15559401]
[1756576987314,5.38398879,201.73,201.72,13.59559401]
[1756576987515,5.38398879,201.73,201.72,38.58]
[1756576987820,26.0,201.72,201.62,14.905722]
[1756576988025,4.67398879,201.64,201.63,52.19559401]
[1756576988631,4.67398879,201.65,201.64,13.59559401]
[1756576988830,0.65,201.69,201.64,52.19559401]
[1756576989029,4.67398879,201.68,201.66,13.59559401]
[1756576989220,0.65,201.72,201.67,52.19559401]
[1756576989529,0.06,201.73,201.67,52.19559401]
[1756576989530,4.67398879,201.71,201.68,13.66559401]
[1756576989846,4.67398879,201.71,201.7,13.59559401]
[1756576990341,0.06,201.73,201.7,13.66559401]
[1756576990342,4.67398879,201.72,201.7,13.66559401]
[1756576990545,4.67398879,201.72,201.71,52.23559401]
[1756576990746,0.06,201.73,201.72,13.59559401]
[1756576990942,0.06,201.73,201.72,18.55296065]
[1756576990943,4.73398879,201.73,201.72,18.55296065]
[1756576991545,4.73398879,201.73,201.72,13.59559401]
[1756576993127,5.38398879,201.73,201.69,4.95810402]
[1756576993447,0.65,201.72,201.69,13.59559401]
[1756576993650,0.65,201.72,201.7,38.62]